bitfinex-derivatives/quotes_ETHF0:USTF0_20260131
["timestamp","ask_amount","ask_price","bid_price","bid_amount"]
[1769899451325,0.55408232,2415.1,2414.6,1.12144623]
[1769899452027,1.68432982,2415.1,2414.5,3.91364058]
[1769899452224,1.68432982,2415.1,2414.3,9.90222259]
[1769899452425,1.68432982,2415.1,2414.4,3.91554693]
[1769899452626,1.68432982,2415.1,2414.5,3.91554693]
[1769899452827,1.68432982,2415.1,2414.4,1.12144623]
[1769899453028,1.68432982,2415.1,2414.5,3.91703881]
[1769899453223,1.68432982,2415.1,2414.4,1.12144623]
[1769899453424,0.55408232,2415.1,2414.5,5.04068375]
[1769899453625,1.1302475,2415.0,2414.4,3.71631127]
[1769899453821,0.55408232,2415.1,2414.4,3.71631127]
[1769899453822,0.55408232,2415.1,2414.6,1.12144623]
[1769899454232,1.68432982,2415.1,2414.5,1.12144623]
[1769899456927,1.68432982,2415.1,2414.6,3.89526758]
[1769899457126,1.1302475,2415.0,2414.5,4.8377575]
[1769899457328,1.1302475,2415.0,2414.6,3.89527163]
[1769899457627,1.1302475,2415.0,2414.5,4.8377575]
[1769899457628,1.1302475,2415.0,2414.5,1.12144623]
[1769899457832,1.1302475,2415.0,2414.6,3.89526579]
[1769899458032,1.1302475,2415.0,2414.5,1.12144623]
[1769899458233,1.1302475,2415.0,2414.6,3.89539043]
[1769899458436,1.1302475,2415.0,2414.5,1.12144623]
[1769899458734,0.55408232,2415.1,2414.6,1.12144623]
[1769899458936,1.68432982,2415.1,2414.5,3.71631127]
[1769899459235,1.68432982,2415.1,2414.4,3.71631127]
[1769899460036,1.1302475,2415.0,2414.4,3.71631127]
[1769899460236,1.1302475,2415.0,2414.2,3.71631127]
[1769899460839,1.1302475,2415.0,2414.3,1.12144623]
[1769899461339,1.1302475,2415.0,2414.3,4.8377575]
[1769899461828,0.55408232,2415.1,2414.4,1.12144623]
[1769899462530,1.68432982,2415.1,2414.4,1.12144623]
[1769899463146,1.1302475,2415.0,2414.3,3.71631127]
[1769899464128,1.1302475,2415.0,2414.3,4.8377575]
[1769899464337,1.1302475,2415.0,2414.4,3.71631127]
[1769899465332,1.1302475,2415.0,2414.2,1.12144623]
[1769899466832,0.55408232,2415.1,2414.2,1.12144623]
[1769899467635,1.68432982,2415.1,2414.2,1.12144623]
[1769899468641,0.55408232,2415.1,2414.2,1.12144623]
[1769899469833,1.1302475,2415.0,2414.2,1.12144623]
[1769899470041,0.55408232,2415.1,2414.2,1.12144623]
[1769899470341,0.55408232,2415.1,2414.4,1.12144623]
[1769899470636,1.1302475,2414.8,2413.9,3.837]
[1769899470841,1.1302475,2414.8,2414.0,3.70226583]
[1769899471038,1.1302475,2414.8,2413.6,3.73457653]
[1769899471238,1.3375775,2414.8,2413.6,3.73457653]
[1769899472543,0.20735,2414.6,2413.6,3.73457653]
[1769899472744,1.1302475,2414.5,2413.7,1.12144623]
[1769899473144,1.3375975,2414.6,2413.7,1.12144623]
[1769899479051,1.3375975,2414.6,2413.6,3.73457653]
[1769899479553,1.3375975,2414.6,2413.7,2.1418382]
[1769899479754,1.3375975,2414.6,2413.6,3.73457653]
[1769899481052,2.20408584,2414.4,2413.6,3.73457653]
[1769899481953,2.20408584,2414.4,2413.6,0.00457653]
[1769899482154,2.20408584,2414.4,2413.6,2.38116707]
[1769899482551,2.20408584,2414.4,2413.6,0.00457653]
[1769899483556,3.83821394,2414.1,2413.6,0.00457653]
[1769899484154,2.24639643,2414.0,2413.4,2.37659054]
[1769899484354,2.24639643,2414.0,2413.3,8.69222272]
[1769899484656,1.59181751,2414.1,2413.4,2.37659054]
[1769899485255,1.59181751,2414.1,2413.4,2.38053199]
[1769899486259,3.83821394,2414.1,2413.4,2.38053199]
[1769899487559,2.24639643,2414.0,2413.4,0.00394145]
[1769899489660,1.59181751,2413.8,2413.4,0.00394145]
[1769899489861,1.59181751,2413.8,2413.4,2.38053199]
[1769899490062,1.59181751,2413.8,2413.2,6.31563218]
[1769899490261,1.59181751,2413.8,2413.2,2.47863218]
[1769899491065,1.59181751,2413.8,2413.2,2.48192681]
[1769899492163,1.59181751,2413.8,2413.2,3.07333536]
[1769899492364,1.59181751,2413.8,2413.3,6.74691329]
[1769899493964,1.59181751,2413.8,2413.3,4.26926246]
[1769899494160,1.59181751,2413.8,2413.3,6.74691329]
[1769899494562,1.59181751,2413.8,2413.3,4.26926246]
[1769899495073,1.59181751,2413.8,2413.3,6.74691329]
[1769899496373,3.83821394,2413.8,2413.3,6.81312161]
[1769899496568,1.59181751,2413.8,2413.3,3.1352677]
[1769899496873,3.83821394,2413.8,2413.3,6.15806516]
[1769899497074,3.83821394,2413.8,2413.3,2.47765083]
[1769899497275,3.83821394,2413.8,2413.3,3.19412606]
[1769899497676,2.24639643,2413.7,2413.3,2.47765083]
[1769899497976,2.24639643,2413.7,2413.2,3.72151203]
[1769899498280,2.24639643,2413.7,2413.3,3.68236865]
[1769899498474,2.24639643,2413.7,2413.2,3.72151203]
[1769899499070,2.24639643,2413.7,2413.3,3.7182174]
[1769899499275,2.24639643,2413.7,2413.2,0.00329463]
[1769899501079,2.24639643,2413.7,2413.2,1.13894601]
[1769899501681,2.24639643,2413.7,2413.2,0.00329463]
[1769899501877,3.83821394,2413.5,2412.9,11.60664258]
[1769899502082,2.24639643,2413.7,2413.0,1.18973265]
[1769899502873,2.24639643,2413.7,2413.0,0.00298758]
[1769899503072,2.24639643,2413.4,2412.5,15.08997058]
[1769899503273,1.59181751,2413.8,2412.4,3.732]
[1769899503274,2.24639643,2413.1,2412.4,3.732]
[1769899503479,3.83821394,2412.9,2412.4,3.732]
[1769899504083,3.8418702,2412.9,2412.4,3.73720289]
[1769899504383,2.24639643,2412.8,2412.4,3.73720289]
[1769899504977,2.24639643,2412.8,2412.2,4.293]
[1769899505184,2.24639643,2412.8,2411.9,6.30972266]
[1769899505778,2.24639643,2412.8,2412.0,2.00972266]
[1769899505976,2.24639643,2412.8,2412.0,2.01372382]
[1769899506381,2.24639643,2412.8,2412.0,0.00400116]
[1769899507688,2.830445,2412.5,2412.0,0.00400116]
[1769899508085,0.00365626,2412.9,2411.5,3.93961]
[1769899508086,2.830445,2412.2,2411.5,6.2496198]
[1769899508287,2.830445,2412.2,2411.5,8.034]
[1769899509089,2.830445,2412.2,2411.5,8.03917913]
[1769899509392,2.830445,2412.4,2411.6,2.57264812]
[1769899509989,4.42226251,2412.6,2411.6,2.57264812]
[1769899510290,2.830445,2412.5,2411.6,2.57264812]
[1769899510588,2.830445,2412.5,2411.5,8.03917913]
[1769899510886,2.830445,2412.5,2411.5,10.71989055]
[1769899511087,2.830445,2412.5,2411.6,2.68071142]
[1769899511487,2.830445,2412.5,2411.5,8.03917913]
[1769899513488,3.34077785,2412.5,2411.5,8.03917913]
[1769899513791,3.34077785,2412.5,2411.6,2.81072851]
[1769899514693,3.34077785,2412.5,2411.5,10.93585652]
[1769899515886,3.34077785,2412.5,2411.6,2.97403779]
[1769899516083,2.830445,2412.5,2411.6,2.97403779]
[1769899516284,5.262445,2412.7,2411.6,2.97403779]
[1769899516488,2.830445,2412.6,2411.6,2.97403779]
[1769899517293,3.29107244,2412.6,2411.6,2.97403779]
[1769899521496,3.29107244,2412.6,2411.5,7.28817288]
[1769899521702,2.830445,2412.4,2411.5,7.28817288]
[1769899522495,2.830445,2412.4,2411.6,2.98099375]
[1769899523191,2.830445,2412.4,2411.5,4.30717913]
[1769899523595,2.830445,2412.4,2411.5,7.28817288]
[1769899524399,2.830445,2412.3,2411.5,7.28817288]
[1769899525196,2.830445,2412.3,2411.6,2.98099375]
[1769899525395,2.830445,2412.3,2411.5,2.98617288]
[1769899526702,1.59181751,2412.4,2411.5,2.98617288]
[1769899527097,1.59181751,2412.4,2411.6,2.98099375]
[1769899527297,4.42226251,2412.4,2411.6,2.98099375]
[1769899527499,2.830445,2412.3,2411.6,2.98099375]
[1769899527701,3.037955,2412.7,2411.6,2.98099375]
[1769899528001,3.50585218,2412.7,2411.6,2.98099375]
[1769899528195,1.59181751,2412.3,2411.6,2.98099375]
[1769899528596,2.830445,2412.2,2411.5,0.00517913]
[1769899529102,2.830445,2412.2,2411.5,4.94565824]
[1769899529304,2.830445,2412.2,2411.6,3.71681218]
[1769899529797,2.830445,2412.2,2411.5,3.72199131]
[1769899529998,2.830445,2412.2,2411.6,3.71681218]
[1769899530602,2.830445,2412.2,2411.5,3.72199131]
[1769899531005,2.830445,2412.2,2411.6,3.71681218]
[1769899532205,2.830445,2412.2,2411.7,3.71681218]
[1769899533308,2.830445,2412.2,2411.8,3.71681218]
[1769899533603,2.830445,2412.2,2411.7,3.71681218]
[1769899534106,2.830445,2412.2,2411.8,3.71681218]
[1769899534309,2.830445,2412.2,2411.7,3.71681218]
[1769899535904,2.830445,2412.2,2411.8,3.71681218]
[1769899536305,2.830445,2412.2,2411.7,3.71681218]
[1769899537205,3.53637952,2411.9,2411.5,0.00517913]
[1769899539511,1.59181751,2412.0,2411.3,3.46681383]
[1769899539811,5.12819703,2412.0,2411.3,3.46681383]
[1769899540205,3.53637952,2411.9,2411.3,3.46681383]
[1769899540604,3.53637952,2411.9,2411.3,3.47102552]
[1769899541014,3.77942158,2412.1,2411.3,3.47102552]
[1769899544424,3.77942158,2411.8,2411.3,0.00421169]
[1769899544624,3.77942158,2411.9,2411.1,3.76985322]
[1769899545324,1.59181751,2412.0,2411.1,3.76985322]
[1769899545325,3.77942158,2411.8,2411.1,3.76985322]
[1769899545722,3.77942158,2412.1,2411.1,3.77452769]
[1769899554432,3.77942158,2412.1,2411.2,3.76985322]
[1769899554634,3.77942158,2412.0,2411.2,3.76985322]
[1769899555128,0.20756,2412.2,2411.2,3.76985322]
[1769899556023,3.98698158,2412.2,2411.2,3.76985322]
[1769899557332,3.98698158,2412.2,2411.4,3.76985322]
[1769899558032,3.98698158,2412.2,2411.4,2.48554278]
[1769899561330,3.98698158,2412.2,2411.5,2.48554278]
[1769899561936,2.434,2412.1,2411.5,2.48554278]
[1769899562137,3.77942158,2412.0,2411.5,2.48554278]
[1769899563628,3.77942158,2412.0,2411.4,2.48726771]
[1769899564234,3.77942158,2412.0,2411.5,2.48726771]
[1769899571240,3.77942158,2412.0,2411.2,8.37324758]
[1769899571437,3.77942158,2412.0,2411.1,9.5827147]
[1769899571637,3.77942158,2412.0,2411.1,3.3987235]
[1769899572335,3.18948896,2411.6,2410.7,16.99915773]
[1769899572539,3.18948896,2411.6,2410.2,10.7093146]
[1769899572540,3.18948896,2411.4,2410.4,3.39404903]
[1769899573342,3.18948896,2411.4,2410.4,3.39851278]
[1769899574544,0.2076,2411.7,2410.4,3.39851278]
[1769899574545,3.39708896,2411.7,2410.4,3.39851278]
[1769899574845,3.39708896,2411.7,2410.5,3.39404903]
[1769899575246,3.39708896,2411.7,2410.6,4.386]
[1769899575439,3.39708896,2411.7,2410.7,3.39404903]
[1769899576847,0.2076,2411.7,2410.7,3.39404903]
[1769899578040,3.39708896,2411.7,2410.7,3.39404903]
[1769899587148,3.18948896,2411.7,2410.7,3.39404903]
[1769899587954,3.18948896,2411.9,2410.7,3.39404903]
[1769899588154,3.18948896,2411.9,2410.8,3.39404903]
[1769899591361,3.18948896,2411.9,2410.9,3.39404903]
[1769899591661,3.18948896,2411.9,2411.0,3.39404903]
[1769899592752,3.18948896,2411.9,2410.8,4.97068427]
[1769899592958,3.18948896,2411.9,2410.9,3.39404903]
[1769899593358,3.18948896,2411.9,2411.0,3.39404903]
[1769899593960,3.18948896,2411.9,2411.1,3.39404903]
[1769899596363,3.18948896,2411.9,2410.9,8.3647333]
[1769899596564,3.18948896,2411.9,2411.0,3.39404903]
[1769899596762,3.18948896,2411.9,2410.8,3.39404903]
[1769899596763,3.18948896,2411.8,2410.8,3.39404903]
[1769899596961,3.18948896,2411.8,2410.9,2.82629321]
[1769899601166,3.18948896,2411.8,2411.0,2.82629321]
[1769899602067,2.78478621,2411.7,2411.0,2.82629321]
[1769899602561,2.78478621,2411.7,2410.9,3.73011558]
[1769899602864,2.78478621,2411.7,2410.9,6.61954641]
[1769899604063,2.78478621,2411.7,2411.0,2.88943083]
[1769899605568,2.78478621,2411.7,2410.8,3.73011558]
[1769899605770,2.78478621,2411.7,2410.9,2.88943083]
[1769899606265,2.78478621,2411.7,2411.0,6.61954641]
[1769899606667,2.78478621,2411.7,2411.0,2.88943083]
[1769899607263,2.78478621,2411.7,2410.9,3.73011558]
[1769899607460,2.99238621,2411.7,2410.8,6.61954641]
[1769899607868,2.99238621,2411.7,2410.9,2.88943083]
[1769899608069,2.99238621,2411.7,2410.8,3.73011558]
[1769899608369,2.99238621,2411.7,2410.8,6.61954641]
[1769899608871,2.99238621,2411.7,2410.9,2.88943083]
[1769899610866,2.99238621,2411.7,2410.8,6.61954641]
[1769899611263,2.78478621,2411.5,2410.8,6.61954641]
[1769899611472,2.78478621,2411.5,2410.8,2.88943083]
[1769899612669,2.78478621,2411.5,2410.9,2.88943083]
[1769899614171,2.78478621,2411.5,2410.8,3.73011558]
[1769899614365,2.78478621,2411.5,2410.9,2.88943083]
[1769899614569,2.78478621,2411.5,2410.9,6.61954641]
[1769899614971,2.78478621,2411.5,2410.9,2.88943083]
[1769899615466,2.78478621,2411.5,2410.8,6.61954641]
[1769899620270,0.20761,2411.6,2410.9,2.88943083]
[1769899620673,2.99239621,2411.6,2410.9,2.88943083]
[1769899621672,2.99239621,2411.6,2410.9,3.73011558]
[1769899621875,2.99239621,2411.6,2410.8,2.88943083]
[1769899622176,0.20761,2411.6,2410.8,2.88943083]
[1769899622576,2.99239621,2411.6,2410.8,2.88943083]
[1769899624376,2.99239621,2411.6,2410.8,6.61954641]
[1769899624874,2.99239621,2411.6,2410.8,2.88943083]
[1769899626375,2.99239621,2411.6,2410.8,6.61954641]
[1769899627080,2.99239621,2411.6,2410.8,2.88943083]
[1769899627780,2.99239621,2411.6,2410.8,6.61954641]
[1769899627980,2.99239621,2411.6,2410.8,2.88943083]
[1769899628180,2.99239621,2411.6,2410.8,6.61954641]
[1769899629479,2.99239621,2411.6,2410.8,2.88943083]
[1769899629882,2.99239621,2411.6,2410.8,6.61954641]
[1769899630279,0.20761,2411.6,2410.9,2.35501682]
[1769899630482,4.02894673,2411.7,2411.0,2.35501682]
[1769899630681,2.434,2411.7,2411.0,2.35501682]
[1769899630878,38.6320135,2412.0,2411.2,2.35501682]
[1769899630879,4.06298664,2412.0,2411.2,2.35501682]
[1769899631079,4.06298664,2412.0,2411.2,4.84281899]
[1769899631281,6.52478605,2412.0,2411.3,2.35501682]
[1769899632183,2.46803991,2412.0,2411.3,2.35501682]
[1769899632379,5.13740932,2412.1,2411.4,2.35501682]
[1769899633091,2.66936941,2412.1,2411.4,2.35501682]
[1769899633282,2.66936941,2412.1,2411.5,2.35501682]
[1769899635286,2.66936941,2412.1,2411.4,2.48780217]
[1769899635488,0.20757,2412.1,2411.5,2.35501682]
[1769899635783,4.90203991,2412.4,2411.6,2.35501682]
[1769899635987,2.46803991,2412.4,2411.6,2.35501682]
[1769899636485,2.66931941,2412.6,2411.8,2.35501682]
[1769899636685,0.20752,2412.6,2411.8,2.35501682]
[1769899637082,1.59494673,2412.8,2412.0,2.35501682]
[1769899637288,4.05674614,2412.8,2412.0,2.35501682]
[1769899637588,4.50812211,2412.8,2412.0,2.35501682]
[1769899639594,2.91317538,2412.8,2412.0,2.35501682]
[1769899639987,0.45137597,2412.8,2412.1,2.35501682]
[1769899640190,0.00365626,2412.9,2412.1,2.35852187]
[1769899641795,0.42870991,2412.9,2412.1,2.35852187]
[1769899642494,0.00365626,2412.9,2412.1,2.35852187]
[1769899642791,0.00365626,2412.9,2412.2,2.35501682]
[1769899642995,0.00365626,2412.9,2412.3,2.35501682]
[1769899644990,0.42584916,2413.2,2412.3,2.35501682]
[1769899645190,1.80238673,2413.6,2412.3,2.35501682]
[1769899645895,0.00416638,2413.6,2412.6,2.35501682]
[1769899646091,1.59494673,2413.9,2412.6,2.35501682]
[1769899646291,1.59494673,2413.9,2412.7,2.35501682]
[1769899646695,1.59494673,2413.9,2412.9,2.35501682]
[1769899646696,0.40922941,2413.9,2412.9,2.35501682]
[1769899646896,1.59494673,2414.2,2413.1,2.35501682]
[1769899647095,0.00525877,2414.2,2413.2,2.35501682]
[1769899647296,2.02163201,2414.8,2413.4,2.35501682]
[1769899647492,1.59494673,2414.8,2413.6,2.35501682]
[1769899647688,2.46179941,2415.2,2413.8,2.56242682]
[1769899647897,2.88417305,2415.2,2414.0,2.35501682]
[1769899648298,0.42615604,2415.2,2414.0,2.35904624]
[1769899648997,0.0037824,2415.2,2414.0,2.35904624]
[1769899649992,1.59494673,2415.4,2414.1,2.35501682]
[1769899651099,0.00522054,2415.4,2414.1,2.35501682]
[1769899651401,0.00522054,2415.4,2414.1,2.56240682]
[1769899652694,0.00522054,2415.4,2414.3,2.35501682]
[1769899652894,0.00522054,2415.4,2414.5,2.35501682]
[1769899653500,1.59494673,2415.7,2414.5,2.35501682]
[1769899653997,2.46179941,2415.3,2414.0,0.00402942]
[1769899654300,2.46179941,2415.0,2414.1,2.35501682]
[1769899655296,2.66913941,2414.7,2414.0,0.00402942]
[1769899655501,2.46179941,2414.4,2413.1,2.35501682]
[1769899655700,2.46179941,2414.4,2413.2,2.35501682]
[1769899656502,2.46179941,2414.4,2413.2,2.35999466]
[1769899657202,2.66916941,2414.4,2413.2,2.35999466]
[1769899667004,2.24846843,2414.2,2413.2,2.35999466]
[1769899667709,2.45584843,2414.2,2413.2,2.35999466]
[1769899671709,2.45584843,2414.2,2413.2,0.00497784]
[1769899671912,2.45584843,2414.2,2413.2,2.07240521]
[1769899676626,0.20738,2414.2,2413.2,2.07240521]
[1769899677626,2.45584843,2414.2,2413.2,2.07240521]
[1769899683232,2.45584843,2414.2,2413.3,2.06742737]
[1769899684436,2.45584843,2414.2,2413.3,4.55522954]
[1769899685239,2.45584843,2414.2,2413.4,3.69500319]
[1769899685439,2.45584843,2414.2,2413.4,2.06742737]
[1769899685639,2.45584843,2414.2,2413.3,2.48780217]
[1769899685839,2.45584843,2414.2,2413.4,3.69400852]
[1769899686038,2.45584843,2414.2,2413.3,2.48780217]
[1769899686342,0.20739,2414.1,2413.3,2.48780217]
[1769899686536,2.24846843,2414.0,2413.3,2.48780217]
[1769899687140,2.24846843,2414.0,2413.2,0.00497784]
[1769899687141,2.12140849,2413.8,2413.2,2.49278001]
[1769899687339,2.12140849,2413.8,2413.2,0.00497784]
[1769899687539,2.12140849,2413.8,2413.1,1.10183158]
[1769899687737,2.12140849,2413.8,2412.9,3.73011558]
[1769899688337,2.12140849,2413.8,2412.7,5.67508076]
[1769899688639,2.12140849,2413.8,2412.7,5.67821351]
[1769899688840,2.12140849,2413.8,2412.8,3.73011558]
[1769899689139,1.91398849,2413.6,2412.7,5.67821351]
[1769899689339,1.91878745,2413.6,2412.8,1.94496518]
[1769899695342,1.91878745,2413.6,2412.9,1.94496518]
[1769899695544,0.00479896,2413.6,2412.9,1.94496518]
[1769899697538,1.91878745,2413.6,2412.9,1.94496518]
[1769899697742,1.91878745,2413.6,2412.8,3.67947423]
[1769899697943,1.91878745,2413.6,2412.7,1.94809793]
[1769899698344,1.91878745,2413.6,2412.8,1.94496518]
[1769899701250,2.12622745,2413.6,2412.8,1.94496518]
[1769899702652,2.12143849,2413.4,2412.7,0.00313275]
[1769899704648,1.91398849,2413.2,2412.7,0.00313275]
[1769899704853,1.91398849,2413.2,2412.4,1.94496518]
[1769899705852,1.91398849,2413.2,2412.4,1.94935296]
[1769899706248,1.91398849,2413.2,2412.4,0.00438778]
[1769899706456,1.91398849,2413.2,2412.5,1.94496518]
[1769899709455,1.91398849,2413.2,2412.5,5.65578716]
[1769899709855,1.91398849,2413.2,2412.5,1.94496518]
[1769899710158,1.91398849,2413.2,2412.5,5.65572772]
[1769899712450,1.91398849,2413.2,2412.5,1.94496518]
[1769899713256,1.91398849,2413.2,2412.6,1.94496518]
[1769899716354,1.91398849,2413.2,2412.7,5.72151678]
[1769899716559,1.91398849,2413.2,2412.7,1.94496518]
[1769899718561,1.91398849,2413.2,2412.8,3.90353555]
[1769899718757,1.91398849,2413.2,2412.7,1.94496518]
[1769899719059,1.91398849,2413.2,2412.8,3.9035295]
[1769899719261,1.91398849,2413.2,2412.7,1.94496518]
[1769899719561,1.91398849,2413.2,2412.8,3.95999945]
[1769899719761,1.91398849,2413.2,2412.7,1.94496518]
[1769899719964,1.91398849,2413.2,2412.8,3.94687154]
[1769899720261,1.91398849,2413.2,2412.7,1.94496518]
[1769899720453,1.91398849,2413.2,2412.8,3.94727755]
[1769899720656,1.91398849,2413.2,2412.7,1.94496518]
[1769899720856,1.83026328,2413.2,2412.8,5.76653043]
[1769899721062,1.83026328,2413.2,2412.8,1.84829196]
[1769899721254,2.03772328,2413.3,2412.8,1.84829196]
[1769899721761,0.20746,2413.3,2413.0,1.86070046]
[1769899721960,0.20746,2413.3,2412.7,3.73011558]
[1769899722262,0.20746,2413.3,2412.8,7.7746152]
[1769899722462,0.20746,2413.3,2412.9,4.04449962]
[1769899722660,0.20746,2413.3,2412.8,3.73011558]
[1769899722961,0.20746,2413.3,2412.9,4.02982833]
[1769899723262,0.20746,2413.3,2412.7,3.73011558]
[1769899723462,0.20746,2413.3,2412.8,4.02988637]
[1769899723756,0.20746,2413.3,2412.9,4.02988637]
[1769899723961,0.20746,2413.3,2412.8,1.56032855]
[1769899724158,0.20746,2413.3,2412.9,5.59036602]
[1769899724358,0.20746,2413.3,2412.9,1.56032855]
[1769899726761,2.08013623,2413.3,2412.8,5.26497717]
[1769899726963,2.08013623,2413.3,2412.9,4.00050372]
[1769899727164,2.08013623,2413.3,2412.8,1.53486159]
[1769899727367,2.08013623,2413.3,2412.9,4.00068429]
[1769899727565,2.08013623,2413.3,2412.8,1.53486159]
[1769899727767,2.08013623,2413.3,2412.9,3.99422859]
[1769899727963,2.08013623,2413.3,2412.8,5.26497717]
[1769899728161,2.08013623,2413.3,2412.9,3.99407765]
[1769899728361,2.08013623,2413.3,2412.8,1.53486159]
[1769899728561,2.08013623,2413.3,2412.9,3.99436717]
[1769899728764,2.08013623,2413.3,2412.8,3.73011558]
[1769899728963,2.08013623,2413.3,2412.9,3.963976]
[1769899729164,2.08013623,2413.3,2412.8,3.73011558]
[1769899729366,2.08013623,2413.3,2412.9,3.96397555]
[1769899729664,2.08013623,2413.3,2412.8,3.73011558]
[1769899729870,2.08013623,2413.3,2412.9,3.96421612]
[1769899730070,2.08013623,2413.3,2412.8,3.73011558]
[1769899730371,2.08013623,2413.3,2412.9,3.9642159]
[1769899730571,2.08013623,2413.3,2412.8,3.73011558]
[1769899730771,2.08013623,2413.3,2412.9,3.91160964]
[1769899731066,2.08013623,2413.3,2412.8,5.27671035]
[1769899731271,2.08013623,2413.3,2412.9,3.91145494]
[1769899731472,2.08013623,2413.3,2412.8,5.27671035]
[1769899731773,2.08013623,2413.3,2412.9,3.91169808]
[1769899732071,2.08013623,2413.3,2412.8,5.27671035]
[1769899732272,2.08013623,2413.3,2412.9,3.91170445]
[1769899732472,2.08013623,2413.3,2412.8,5.27671035]
[1769899732674,0.20746,2413.3,2413.0,1.55085224]
[1769899732870,0.20432714,2413.3,2413.0,1.55085224]
[1769899733670,5.89757734,2413.5,2413.0,1.55085224]
[1769899734172,4.02490111,2413.5,2413.0,1.55085224]
[1769899734874,0.00479896,2413.6,2413.0,1.55085224]
[1769899735174,0.00479896,2413.6,2413.2,1.56494319]
[1769899735376,1.59290111,2413.8,2413.4,1.56494319]
[1769899736072,5.60567623,2414.1,2413.4,1.56494319]
[1769899736073,7.19857734,2414.1,2413.4,1.56494319]
[1769899736462,7.20313276,2414.1,2413.4,1.56494319]
[1769899737567,1.87267623,2414.0,2413.4,1.56494319]
[1769899738074,7.20313276,2414.1,2413.4,1.56494319]
[1769899738969,5.33045653,2414.1,2413.4,1.56494319]
[1769899739166,7.20313276,2414.1,2413.4,1.56494319]
[1769899739376,5.33045653,2414.1,2413.4,1.56494319]
[1769899740680,5.33045653,2414.1,2413.5,5.45760123]
[1769899740884,5.33045653,2414.1,2413.5,1.57823572]
[1769899741576,3.73755542,2414.1,2413.5,1.57823572]
[1769899741774,5.61023165,2414.1,2413.5,1.57823572]
[1769899742173,5.61023165,2414.1,2413.3,3.73011558]
[1769899742174,1.87267623,2414.0,2413.3,3.73011558]
[1769899742375,1.87267623,2414.0,2413.4,3.87707981]
[1769899742678,1.87267623,2414.0,2413.2,5.3182646]
[1769899742679,1.87267623,2414.0,2413.2,3.73011558]
[1769899742877,1.87267623,2414.0,2413.4,1.58814902]
[1769899743369,1.87267623,2414.0,2413.2,5.46920289]
[1769899743575,1.87267623,2414.0,2413.3,3.87671896]
[1769899743773,0.00455542,2414.1,2413.5,1.59248393]
[1769899744177,1.87723165,2414.1,2413.5,1.59248393]
[1769899745082,1.87723165,2414.1,2413.4,3.87108728]
[1769899745282,1.87723165,2414.1,2413.3,5.3388125]
[1769899745581,1.87267623,2413.9,2413.4,3.87033621]
[1769899745773,1.87267623,2413.9,2413.2,3.73011558]
[1769899745975,1.87267623,2413.9,2413.3,3.87044141]
[1769899746183,1.87267623,2413.9,2413.4,3.87044141]
[1769899746382,1.87267623,2413.9,2413.2,5.36724487]
[1769899746682,1.87267623,2413.9,2413.3,3.86999736]
[1769899746882,1.87267623,2413.9,2413.2,3.73011558]
[1769899747083,1.87267623,2413.9,2413.3,3.87024292]
[1769899747280,1.87267623,2413.9,2413.2,3.73011558]
[1769899747477,1.87267623,2413.9,2413.3,3.86998644]
[1769899747680,1.87267623,2413.9,2413.3,2.47881575]
[1769899748887,1.87267623,2413.9,2413.2,6.34874954]
[1769899749186,1.87267623,2413.9,2413.2,4.14608452]
[1769899749384,1.87267623,2413.9,2413.1,2.47881575]
[1769899749687,1.78761126,2413.6,2413.1,2.47881575]
[1769899749986,1.78761126,2413.6,2413.0,2.47881575]
[1769899750178,1.99505126,2413.6,2412.9,2.47881575]
[1769899750376,1.99505126,2413.6,2412.8,2.47881575]
[1769899750883,1.78761126,2413.3,2412.6,2.47986401]
[1769899751074,1.78761126,2413.3,2412.7,6.41299208]
[1769899751276,1.78761126,2413.3,2412.6,2.47986401]
[1769899751582,1.78761126,2413.3,2412.7,6.41307603]
[1769899751785,1.78761126,2412.7,2412.2,3.73011558]
[1769899751984,1.78761126,2412.7,2412.0,5.4035758]
[1769899752284,1.78761126,2412.7,2412.1,3.85452254]
[1769899752484,1.78761126,2412.7,2412.1,3.85323197]
[1769899752885,1.78761126,2412.7,2412.1,3.85771216]
[1769899753087,1.78761126,2412.7,2412.1,0.00448019]
[1769899754383,2.196378,2412.7,2412.1,0.00448019]
[1769899761491,1.78761126,2412.4,2411.6,1.81840197]
[1769899762393,1.7926041,2412.4,2411.6,1.82149588]
[1769899771409,2.0001441,2412.4,2411.6,1.82149588]
[1769899771609,2.0001441,2412.4,2411.6,0.00309391]
[1769899776010,1.78761126,2412.1,2411.6,0.00309391]
[1769899777109,1.78761126,2412.1,2411.6,3.84338811]
[1769899777313,1.78761126,2412.1,2411.6,0.00309391]
[1769899777515,1.78761126,2412.1,2411.6,3.84338811]
[1769899777813,1.78761126,2412.1,2411.6,0.00309391]
[1769899778012,1.78761126,2412.1,2411.6,3.84338811]
[1769899778312,1.78761126,2412.1,2411.6,0.00309391]
[1769899781120,1.78761126,2412.1,2411.7,3.94660819]
[1769899781320,1.78761126,2412.1,2411.6,0.00309391]
[1769899781519,1.78761126,2412.1,2411.7,3.94660646]
[1769899781721,1.78761126,2412.1,2411.4,3.73011558]
[1769899781917,1.78761126,2412.1,2411.5,7.67691312]
[1769899782118,1.78761126,2412.1,2411.6,3.94679754]
[1769899782321,1.78761126,2412.1,2411.4,3.73011558]
[1769899782620,1.78761126,2412.1,2411.5,3.91670866]
[1769899782822,1.78761126,2412.1,2411.6,3.91670866]
[1769899783121,1.78761126,2412.1,2411.5,0.00316707]
[1769899783321,1.78761126,2412.1,2411.6,3.91690247]
[1769899783521,1.78761126,2412.1,2411.5,0.00316707]
[1769899783720,1.78761126,2412.1,2411.6,3.91690214]
[1769899783920,1.78761126,2412.1,2411.5,0.00316707]
[1769899784321,1.78761126,2412.1,2411.6,3.91732073]
[1769899784621,1.78761126,2412.1,2411.5,0.00316707]
[1769899787524,1.78761126,2412.1,2411.6,3.8782022]
[1769899787719,1.78761126,2412.1,2411.5,0.00316707]
[1769899789028,1.78761126,2412.1,2411.6,3.96488774]
[1769899789328,1.78761126,2412.1,2411.5,0.00316707]
[1769899789627,1.78761126,2412.1,2411.6,3.9650033]
[1769899789826,1.78761126,2412.1,2411.5,0.00316707]
[1769899790731,1.78761126,2412.1,2411.6,3.91580586]
[1769899791028,1.78761126,2412.1,2411.5,0.00316707]
[1769899791329,1.78761126,2412.1,2411.6,3.91641753]
[1769899791627,1.78761126,2412.1,2411.5,3.73328265]
[1769899791821,1.78761126,2412.1,2411.6,3.91640667]
[1769899792021,1.78761126,2412.1,2411.5,0.00316707]
[1769899792227,1.78761126,2412.1,2411.6,3.8859472]
[1769899792426,1.78761126,2412.1,2411.5,0.00316707]
[1769899792627,1.78761126,2412.1,2411.6,3.8859479]
[1769899792924,1.78761126,2412.1,2411.5,0.00316707]
[1769899793322,1.78761126,2412.1,2411.4,3.73011558]
[1769899794227,1.78761126,2412.1,2411.3,3.73011558]
[1769899794425,1.78761126,2412.1,2411.3,3.73475992]
[1769899794719,1.78761126,2412.1,2411.4,3.73011558]
[1769899794921,1.78761126,2412.1,2411.3,3.73475992]
[1769899797724,1.78761126,2412.1,2411.4,3.73011558]
[1769899798124,1.78761126,2412.1,2411.3,3.73475992]